Cogmind - Beta 9.1 @@@ ROGUE MODE // 2019.11.03 @ 00:54:46 // Halloween2019/Abominations Player: Trione Result: Core destroyed Performance ------------- Evolutions (1) 500 Regions Visited (2) 400 Robots Destroyed (13) 65 Value Destroyed (782) 782 Prototype IDs (0) 0 Alien Tech Used (0) 0 Bonus (0) 0 TOTAL SCORE: 1747 Bonus ------- None Cogmind --------- Core Integrity 0/400 Matter 300/300 Energy 12/100 System Corruption 4% Temperature Cool (699) Location -9/Materials Parts ------- Power (1) Propulsion (2) Utility (3) Weapon (3) Inventory (4) Light Treads Small Storage Unit Hardened Medium Armor Plating Hardened Medium Armor Plating Peak State ------------ Power Light Ion Engine Propulsion Light Treads Light Treads Utility Large Storage Unit Large Storage Unit Hardened Light Armor Plating Weapon Assault Rifle Light Assault Rifle Shotgun Inventory Light Treads Light Treads Wheel Wheel Compact Wheel Small Storage Unit Medium Storage Unit Hardened Light Armor Plating Hardened Medium Armor Plating Hardened Medium Armor Plating Hardened Medium Armor Plating Hardened Medium Armor Plating Mining Claw [Rating: 13] Favorites ----------- Power Light Ion Engine Engine Light Ion Engine Propulsion Light Treads Treads Light Treads Wheel Wheel Utility Large Storage Unit Storage Large Storage Unit Protection Hardened Light Armor Plating Weapon Assault Rifle Energy Gun Small Laser Ballistic Gun Assault Rifle Slashing Weapon Mining Claw Build | -11 -10 -9 ------- Run | Scr Mat Mat Slots Evolved 2 | . . 2 Power . | . . . Propulsion . | . . . Utility 1 | . . 1 Weapon 1 | . . 1 Parts Attached 20 | 6 3 11 Power 2 | 1 . 1 Engine 2 | 1 . 1 Core . | . . . Reactor . | . . . Propulsion 6 | 2 . 4 Treads 3 | . . 3 Leg . | . . . Wheel 3 | 2 . 1 Hover . | . . . Flight . | . . . Utility 6 | 1 3 2 Device . | . . . Storage 4 | 1 3 . Processor . | . . . Hackware . | . . . Protection 2 | . . 2 Artifact . | . . . Weapon 6 | 2 . 4 Energy Gun 1 | . . 1 Energy Cannon . | . . . Ballistic Gun 4 | 2 . 2 Ballistic Cannon . | . . . Launcher . | . . . Special Weapon . | . . . Impact Weapon . | . . . Slashing Weapon 1 | . . 1 Piercing Weapon . | . . . Special Melee Weapon . | . . . Unidentified Prototypes . | . . . Parts Lost 12 | . . 12 Power 2 | . . 2 Propulsion 3 | . . 3 Utility 2 | . . 2 Weapon 5 | . . 5 Highest Loss Streak 8 | . . 8 Average Slot Usage (%) 93 | . 97 89 Engine 11 | . 14 7 Treads 8 | . . 17 Wheel 16 | . 28 3 Storage 23 | . 25 20 Protection 5 | . . 10 Energy Gun 3 | . . 6 Ballistic Gun 24 | . 28 20 Naked Turns 2 | . . 2 Heaviest Build 46 | 10 38 46 Greatest Support 40 | 26 26 40 Greatest Overweight (x) 8 | . 1 8 Average Overweight (x) . | . . 1 Largest Inventory Capacity 16 | 6 16 16 Average Capacity 12 | 5 11 15 Most Carried 15 | 4 12 15 Average Carried 9 | 2 7 13 Final Capacity 16 | 6 16 4 Final Carried 12 | 4 12 4 Class Distribution -------------------- 68% | Mutant 31% | Tank Dominant Class ---------------- Mutant | -10/Materials Tank | -9/Materials Resources | -11 -10 -9 ----------- Run | Scr Mat Mat Matter Collected 606 | 220 99 287 Remotely . | . . . Salvage Created 598 | . 196 402 Parts 45 | . 14 31 Haulers Intercepted 1 | . 1 . Recyclers Shooed . | . . . Parts Field Recycled . | . . . Retrieved Matter . | . . . Parts Self-Destructed . | . . . Prevented . | . . . Kills | -11 -10 -9 ------- Run | Scr Mat Mat Combat Hostiles Destroyed 12 | . 3 9 Melee 1 | . . 1 Guns 11 | . 3 8 Classes Destroyed 2 | . 2 . Hauler 1 | . 1 . Abomination 12 | . 3 9 Best Kill Streak 3 | . 1 3 Combat Bots Only 3 | . 1 3 Max Kills in Single Turn 1 | . 1 1 Gunslinging . | . . . Exploded . | . . . Melee 1 | . . 1 Uniques/NPCs Destroyed . | . . . Combat | -11 -10 -9 -------- Run | Scr Mat Mat Damage Taken 1860 | . 178 1682 Core 474 | . 15 459 Absorbed by Shields . | . . . Core Remaining (%) 97 | 100 94 . Volleys Fired 45 | . 12 33 Largest 3 | . 2 3 Hottest 80 | . 40 80 Shots Fired 112 | . 24 88 Gun 112 | . 24 88 Cannon . | . . . Launcher . | . . . Special . | . . . Kinetic 98 | . 24 74 Thermal 14 | . . 14 Explosive . | . . . Electromagnetic . | . . . Robot Hit Streak 21 | . 12 21 Robot Miss Streak 2 | . 2 1 Penetration Max . | . . . Secondary Targets 1 | . . 1 Max Gunslinging Chain 1 | . . 1 Shots Hit Robots 94 | . 17 77 Core Hits 38 | . 10 28 Critical Hits 1 | . 1 . Critical Kills 1 | . 1 . Critical Parts Destroyed . | . . . Melee Attacks 2 | . . 2 Impact . | . . . Slashing 2 | . . 2 Piercing . | . . . Sneak Attacks . | . . . Combat Hostiles . | . . . Follow-up Attacks . | . . . Damage Inflicted 1186 | . 197 989 Guns 1139 | . 197 942 Cannons . | . . . Explosions . | . . . Melee 47 | . . 47 Ramming . | . . . Kinetic 960 | . 197 763 Thermal 179 | . . 179 Explosive . | . . . Electromagnetic . | . . . Impact . | . . . Slashing 47 | . . 47 Piercing . | . . . Highest Corruption 4 | . . 4 Average Corruption 2 | . . 2 Corruption Purged . | . . . Effects 6 | . . 6 Message Errors 1 | . . 1 Matter Fused 1 | . . 1 Heat Flow Errors 1 | . . 1 Targeting Errors 3 | . . 3 Overload Shots . | . . . Overflow Damage . | . . . Projectiles . | . . . Explosions . | . . . Melee . | . . . Knockbacks . | . . . Impact . | . . . Kinetic . | . . . Secondary . | . . . Self-Inflicted Damage . | . . . Shots . | . . . Rammed . | . . . Targets Rammed . | . . . Kicked . | . . . Crushed . | . . . Highest Temperature 1034 | . 100 1034 Average Temperature 306 | . 27 331 Received Heat Transfer 444 | . 75 369 Effects 37 | . . 37 Shutdowns 1 | . . 1 Energy Bleed 5 | . . 5 Interference 1 | . . 1 Matter Decay 8 | . . 8 Short Circuit 3 | . . 3 Damage (minor) 7 | . . 7 Damage (major) 7 | . . 7 Damage (core) 5 | . . 5 Siege Activations . | . . . Robots Corrupted . | . . . Combat Hostiles . | . . . Parts Fried . | . . . Impact Corruptions . | . . . Robots Melted . | . . . Combat Hostiles . | . . . Parts Melted . | . . . Heat Transferred 78 | . . 78 Parts Sabotaged . | . . . Parts Stolen . | . . . Parts Stripped . | . . . Power Chain Reactions . | . . . Missiles Intercepted . | . . . Alert | -11 -10 -9 ------- Run | Scr Mat Mat Peak Influence 27 | . 27 11 Average Influence 8 | . 14 3 Maximum Alert Level . | . . . Low Security (%) 100 | . . . Level 1 . | . . . Level 2 . | . . . Level 3 . | . . . Level 4 . | . . . Level 5 . | . . . High Security . | . . . Max Security . | . . . Squads Dispatched 11 | . 7 4 Investigation 5 | . 3 2 Extermination . | . . . Reinforcement 4 | . 2 2 Assault 2 | . 2 . Garrison . | . . . Intercept . | . . . Construction Impeded . | . . . Haulers Reinforced . | . . . Stealth | -11 -10 -9 --------- Run | Scr Mat Mat Distress Signals 4 | . . 4 Communications Jammed . | . . . Distress Signals . | . . . Times Spotted 18 | . 5 13 Peak Tracking Total 5 | . 3 5 Tactical Retreats 1 | . 1 . Traps | -11 -10 -9 ------- Run | Scr Mat Mat Traps Triggered . | . . . Indirectly . | . . . Trap Hack Attempts . | . . . Triggered . | . . . Disarmed . | . . . Reprogrammed . | . . . Reused . | . . . Traps Extracted . | . . . Installed . | . . . Triggered . | . . . Machines | -11 -10 -9 ---------- Run | Scr Mat Mat Machines Disabled . | . . . Max in Single Turn . | . . . Machines Sabotaged . | . . . Garrisons Compromised . | . . . Overloaded Fab Kills . | . . . Fab Network Shutdowns . | . . . Hacking | -11 -10 -9 --------- Run | Scr Mat Mat Machines Accessed 1 | . 1 . Terminals 1 | . 1 . Fabricators . | . . . Repair Stations . | . . . Recycling Units . | . . . Scanalyzers . | . . . Garrison Access . | . . . Total Hacks 3 | . 3 . Successful 2 | . 2 . Failed 1 | . 1 . Catastrophic . | . . . Database Lockouts . | . . . Manual 1 | . 1 . Terminals 3 | . 3 . Fabricators . | . . . Repair Stations . | . . . Recycling Units . | . . . Scanalyzers . | . . . Garrison Access . | . . . Terminal Hacks 1 | . 1 . Zone Layout 1 | . 1 . Fabricator Hacks . | . . . Repair Station Hacks . | . . . Recycling Unit Hacks . | . . . Scanalyzer . | . . . Garrison Access Hacks . | . . . Unauthorized Hacks 2 | . 2 . Terminals 1 | . 1 . Track 1 | . 1 . Fabricators . | . . . Repair Stations . | . . . Recycling Units . | . . . Scanalyzers . | . . . Garrison Access . | . . . Data Cores Recovered . | . . . Used . | . . . Hacking Detections 1 | . 1 . Full Trace Events . | . . . Feedback Events . | . . . Feedback Blocked . | . . . Robot Schematics Acquired . | . . . Robots Built . | . . . Matter . | . . . Time . | . . . Total Robot Build Rating . | . . . Part Schematics Acquired . | . . . Parts Built . | . . . Matter . | . . . Time . | . . . Total Part Build Rating . | . . . Parts Repaired . | . . . Time . | . . . Parts Recycled . | . . . Recycled Matter . | . . . Retrieved Matter . | . . . Retrieved Components . | . . . Parts Scanalyzed . | . . . Part Schematics Acquired . | . . . Parts Damaged . | . . . Bothacking | -11 -10 -9 ------------ Run | Scr Mat Mat Used RIF Installer . | . . . Robots Hacked . | . . . Non-combat . | . . . Combat . | . . . Robot Hacks Applied . | . . . Relay Couplers Released . | . . . Robots Rewired . | . . . Allies Hacked . | . . . Hacks Repelled . | . . . Allies | -11 -10 -9 -------- Run | Scr Mat Mat Total Allies . | . . . Largest Group . | . . . Highest-Rated Group . | . . . Highest-Rated Ally . | . . . Total Orders . | . . . Ally Attacks . | . . . Total Damage . | . . . Kills . | . . . Allies Corrupted . | . . . Allies Melted . | . . . Intel | -11 -10 -9 ------- Run | Scr Mat Mat Robot Analysis Total . | . . . Derelict Logs Recovered . | . . . Drone Launches . | . . . Drone Recoveries . | . . . Exploration | -11 -10 -9 ------------- Run | Scr Mat Mat Turns Passed 707 | 54 327 326 Spaces Moved 453 | 47 295 111 Core 10 | 4 . 6 Treads 62 | . . 62 Legs . | . . . Wheels 381 | 43 295 43 Hover . | . . . Flight . | . . . Fastest Speed 50 | 50 90 50 Average Speed 106 | 86 92 152 Slowest Speed 450 | 90 100 450 Overloaded Moves . | . . . Propulsion Burnouts . | . . . Robots Hopped . | . . . Cave-ins Triggered . | . . . Exploration Rate (%) 23 | 3 51 17 Regions Visited 2 Branch Regions . Pre-discovered Areas . | . . . Known Exits Taken . | . . . Unknown Exits Taken 2 | 1 1 . Scrap Searched . | . . . Spaces Dug . | . . . Terrain Destroyed . | . . . Melee . | . . . Projectile . | . . . AOE . | . . . Actions | -11 -10 -9 --------- Run | Scr Mat Mat Total 580 | 57 325 198 Wait 45 | 1 10 34 Move 451 | 46 294 111 Hop . | . . . Pick Up 17 | 4 6 7 Fast Attach 10 | 6 1 3 Attach 6 | . . 6 Detach . | . . . Swap 4 | . 2 2 Drop . | . . . Fire 45 | . 12 33 Melee 2 | . . 2 Ram . | . . . Kick . | . . . Crush . | . . . Escape Stasis . | . . . Rewire . | . . . Trap . | . . . Miscellaneous . | . . . Route ------- -11/Scrapyard -10/Materials -9/Materials History --------- Turn | Location | Event 16 | -11/Scrapyard | Discovered new exit (range 16) 55 | -11/Scrapyard | Entered Materials 194 | -10/Materials | Discovered new exit (range 15) 307 | -10/Materials | Build established: Mutant 337 | -10/Materials | Discovered new exit (range 4) 382 | -10/Materials | Entered another Materials area 382 | -9/Materials | Evolved 2 slots: Utility x1, Weapon x1 655 | -9/Materials | Core integrity fell below 50% 694 | -9/Materials | Lost 8 parts (1p2n2u3w) 707 | -9/Materials | Core integrity fell below 20% 707 | -9/Materials | Released all parts (1) 709 | -9/Materials | Core destroyed Last Messages --------------- 00691_ Overheating: Matter decay (-36). 00692_ Overheating: Short circuit. 00692_ Wheel permanently disabled. 00693_ Overheating: Energy bleed (-4). 00694_ Overheating: Core damaged (-56). 00698_ Overheating: Lgt. Treads damaged (-23). 00703_ Overheating: Matter decay (-45). 00703_ K|M#UABYD3:M7 RDUYZ&X4 ESBT#S18JZPZ 00704_ Overheating: Wheel damaged (-20). 00704_ Overheating: Lgt. Treads damaged (-9). 00705_ Lgt. Treads destroyed. 00706_ Overheating: Matter decay (-36). 00706_ Hit by a wave of energy. 00706_ Hrd. Medium Armor Plating ripped off. 00706_ Wheel ripped off. 00707_ Overheating: Core damaged (-56). 00707_ Hit by a wave of energy. 00707_ Mining Claw ripped off. 00707_ Released Lrg. Storage Unit. 00709_ Overheating: Core damaged (-76). Map ----- +----------------------------------------------------+ | ?????????????????????????????????????????????????? | | ?????????????????????????????????????????????????? | | ?????????????????????????????????????????????????? | | ?????????????????????????????????????????????????? | | ?????????????????????????????????????????????????? | | ?????????????????????????????????????????????????? | | ?????????????????????????????????????????????????? | | ?????????????????????????????????????????????????? | | ?????????????????????????????????????????????????? | | ?????????????????????????????????????????????????? | | ??????????????????? ??? ?????????????????????????? | | ????????????????? % ?????????????????????????? | | ????????????????##;% ?????????????????????????? | | ????????????????? ;; ;?????????????????????????? | | ?????????????????# ; ;;????????????????????????? | | ?????????????????# ; %; ????????????????????????? | | ????????????????## ; % ; ?????????????##?????????? | | ????????????????# ; ; ???????????? ???? #??? | | ?????????????????# ; ; ?????????? %??? %+??? | | ????????????????## ; n; ?????##?? ??? #??? | | ????????????????# ;% ; ##### ## ? #??? | | ?????????????????# ; %; # ;;;;;;;;""?% #??? | | ????????????????## ; ;!=/=;;;;;;;;;;;;""" ##?? | | ????????????????# ; % %!A%% % % #?? | | ?????????????????# ; %!=! #??? | | ?????????????????# ; @= % #??? | | ????????????????# ; %;;;;;;;;;;;;;!; # ## | | ????????????????# ; ;; % ; #### | | ?????????????"" ; ; ;; " """"" ; | | ?????????????"" ; ;% ;; """"""""" ; | | ????????????? ; ;% ;; """ """ "% | | ???????????? ; ;n ## """####+####+ | | ???????????? ; ; ?###;;;";;;"""" | | ????????????? ; ;;% ?? # | | ?????????????;;;;;;A ???############# """ """ """ | | ??????????????!A ???????????????# """ """ """ | | ??????????????%A % ??????###########%""" """ """ | | ???????????????? ??????# # | | ??????????????????; ???????# #+##+######"# | | ???????????????????????????# """ # % % | | ???????????????????????????#""""" + | | ????????????????????????????""""" # | | ?????????????????????????????"""" #######"""""" | | ?????????????????????????????""" #??????" | | ???????????????????????????? % #??????# " | | ???????????????????????????###########??????# " | | ????????????????????????????????????????????# " | | ????????????????????????????????????????????# | | ????????????????????????????????????????????# " | | ????????????????????????????????????????????# " | +----------------------------------------------------+ Best States ------------- Heat Dissipation 28 Energy Generation 10 Energy Capacity 125 Matter Stores 300 Matter Capacity 300 Sight Range 16 Terrain Scan Density 10 Armor Coverage 225 Evasion (%) 42 Recoil Reduction 2 Item Schematics ----------------- None Robot Schematics ------------------ None Fabricated ------------ Nothing Alien Tech Used ----------------- None Achievements -------------- None Challenges ------------ None Game ------ Seed GammaDisruptionShielding Manual? 0 Play Time 00:09:22 Cumulative 808.4 hours Start 2019.11.03 @ 00:48:38 End 2019.11.03 @ 00:54:46 Sessions 1 Manual Loads 0 Difficulty Rogue Special Mode Halloween2019/Abominations Game No. 309 Rogue 309 Adventurer 0 Explorer 0 Win Type - Total 20 Types 10/1/7/0/0/0/2 Lore% 95 Gallery% 94 Achievement% 79 Wizard Run 0 Options --------- ASCII 0 Keyboard 0 Movement Vi Keybinds 0 Fullscreen 0 Font 12/Crisp Map View 76x50 Tactical HUD 1 Map Filters NONE Filters NONE Steam X RUN: 3e3302d8-bf96-4e7f-9e64-47119819e364